fUSD/lending_fUSD_20260115
["ID","MTS","AMOUNT","RATE_DAILY","PERIOD"]
[402093591,1768516277011,-500.0,0.0003589,10]
[402093592,1768516277022,-766.34,0.0003589,10]
[402093593,1768516277032,-639.07263536,0.0003589,10]
[402093594,1768516277043,-169.58359889,0.0003589,10]
[402093595,1768516277054,-832.64,0.0003589,10]
[402093596,1768516277064,-1724.89,0.0003589,10]
[402093597,1768516277074,-1184.18,0.0003589,10]
[402093598,1768516277084,-1149.4,0.0003589,10]
[402093599,1768516277094,-594.68,0.0003589,10]
[402093600,1768516277105,-500.0,0.0003589,10]
[402093601,1768516277115,-63176.46974197,0.0003589,2]
[402093602,1768516277126,-368.93860041,0.00035973,30]
[402093603,1768516277137,-150.0,0.00036025,2]
[402093604,1768516277147,-8011.0,0.00036036,5]
[402093605,1768516277157,-818.44248,0.0003607,74]
[402093606,1768516277167,-818.44248,0.0003607,74]
[402093607,1768516277177,-818.44249,0.0003607,74]
[402093608,1768516277189,-818.44248,0.0003607,74]
[402093609,1768516277199,-200.0,0.00036105,10]
[402093610,1768516277209,-368.93860041,0.0003611,30]
[402093611,1768516277220,-502.50441144,0.00036164,10]
[402093612,1768516277230,-500.0,0.00036164,10]
[402093613,1768516277241,-2881.42226169,0.00036164,10]
[402093614,1768516277251,-829.03,0.00036164,10]
[402093615,1768516277262,-500.0,0.00036164,10]
[402093616,1768516277273,-803.08,0.00036164,10]
[402093617,1768516277283,-565.97103299,0.00036164,10]
[402093618,1768516277294,-574.56,0.00036164,10]
[402093619,1768516277304,-1181.28,0.00036164,10]
[402093620,1768516277314,-500.0,0.00036164,10]
[402093621,1768516277327,-500.0,0.00036164,10]
[402093622,1768516277337,-500.0,0.00036164,10]
[402093623,1768516277347,-500.0,0.00036164,10]
[402093624,1768516277358,-500.0,0.00036164,10]
[402093625,1768516277369,-500.0,0.00036164,10]
[402093626,1768516277380,-500.0,0.00036164,10]
[402093627,1768516277390,-500.0,0.00036164,10]
[402093628,1768516277401,-1009.59,0.00036164,10]
[402093629,1768516277411,-1136.4,0.00036164,10]
[402093630,1768516277422,-500.0,0.00036164,10]
[402093631,1768516277432,-831.38,0.00036164,10]
[402093632,1768516277442,-500.0,0.00036164,10]
[402093633,1768516277453,-1506.84,0.00036164,10]
[402093634,1768516277463,-500.0,0.00036164,10]
[402093635,1768516277474,-500.0,0.00036164,10]
[402093636,1768516277484,-500.0,0.00036164,10]
[402093637,1768516277495,-500.0,0.00036164,10]
[402093638,1768516277505,-543.27,0.00036164,10]
[402093639,1768516277515,-588.06,0.00036164,10]
[402093640,1768516277526,-284.48408884,0.00036164,10]
[402093641,1768516277537,-942.44,0.00036164,10]
[402093642,1768516277548,-1100.07,0.00036164,10]
[402093643,1768516277814,-580.22,0.00036164,10]
[402093644,1768516277827,-607.07384723,0.00036164,10]
[402093645,1768516277839,-534.84,0.00036164,10]
[402093646,1768516277848,-500.0,0.00036164,10]
[402093647,1768516277858,-271.0,0.00036164,10]
[402093648,1768516277868,-500.0,0.00036164,10]
[402093649,1768516277878,-500.0,0.00036164,10]
[402093650,1768516277888,-500.0,0.00036164,10]
[402093651,1768516277898,-500.0,0.00036164,10]
[402093652,1768516277908,-823.78,0.00036164,10]
[402093653,1768516277919,-500.0,0.00036164,10]
[402093654,1768516277928,-500.0,0.00036164,10]
[402093655,1768516277941,-500.0,0.00036164,10]
[402093656,1768516277951,-500.0,0.00036164,10]
[402093657,1768516277960,-761.86,0.00036164,10]
[402093658,1768516277971,-500.0,0.00036164,10]
[402093659,1768516277980,-500.0,0.00036164,10]
[402093660,1768516277990,-545.81,0.00036164,10]
[402093661,1768516278000,-500.0,0.00036164,10]
[402093662,1768516278010,-714.07,0.00036164,10]
[402093663,1768516278020,-538.99,0.00036164,10]
[402093664,1768516278030,-500.0,0.00036164,10]
[402093665,1768516278040,-679.02,0.00036164,10]
[402093666,1768516278050,-500.0,0.00036164,10]
[402093667,1768516278060,-500.0,0.00036164,10]
[402093668,1768516278071,-1257.27,0.00036164,10]
[402093669,1768516278081,-566.25229807,0.00036164,10]
[402093670,1768516278091,-987.42,0.00036164,10]
[402093671,1768516278101,-500.0,0.00036164,10]
[402093672,1768516278112,-500.0,0.00036164,10]
[402093673,1768516278122,-500.0,0.00036164,10]
[402093674,1768516278132,-500.0,0.00036164,10]
[402093675,1768516278141,-500.0,0.00036164,10]
[402093676,1768516278152,-500.0,0.00036164,10]
[402093677,1768516278161,-500.0,0.00036164,10]
[402093678,1768516278171,-500.0,0.00036164,10]
[402093679,1768516278181,-500.0,0.00036164,10]
[402093680,1768516278191,-582.11,0.00036164,10]
[402093681,1768516278201,-500.0,0.00036164,10]
[402093682,1768516278211,-1973.9,0.00036164,10]
[402093683,1768516278221,-500.0,0.00036164,10]
[402093684,1768516278230,-830.51,0.00036164,10]
[402093685,1768516278240,-500.0,0.00036164,10]
[402093686,1768516278249,-500.0,0.00036164,10]
[402093687,1768516278259,-500.0,0.00036164,10]
[402093688,1768516278269,-537.49,0.00036164,10]
[402093689,1768516278279,-503.12,0.00036164,10]
[402093690,1768516278290,-798.95,0.00036164,10]
[402093691,1768516278300,-851.00247986,0.00036164,10]
[402093692,1768516278311,-500.0,0.00036164,10]
[402093693,1768516278322,-778.51,0.00036164,10]
[402093694,1768516278335,-563.96,0.00036164,10]
[402093695,1768516278345,-500.0,0.00036164,10]
[402093696,1768516278356,-543.84,0.00036164,10]
[402093697,1768516278367,-500.0,0.00036164,10]
[402093698,1768516278377,-695.47,0.00036164,10]
[402093699,1768516278387,-598.47,0.00036164,10]
[402093700,1768516278398,-500.0,0.00036164,10]
[402093701,1768516278410,-500.0,0.00036164,10]
[402093702,1768516278421,-817.85,0.00036164,10]
[402093703,1768516278431,-500.0,0.00036164,10]
[402093704,1768516278441,-655.46,0.00036164,10]
[402093705,1768516278452,-735.7,0.00036164,10]
[402093706,1768516278462,-772.25,0.00036164,10]
[402093707,1768516278473,-500.0,0.00036164,10]
[402093708,1768516278483,-500.0,0.00036164,10]
[402093709,1768516278493,-500.0,0.00036164,10]
[402093710,1768516278503,-500.0,0.00036164,10]
[402093711,1768516278513,-1007.72,0.00036164,10]
[402093712,1768516278523,-500.0,0.00036164,10]
[402093713,1768516278533,-1415.05,0.00036164,10]
[402093714,1768516278543,-616.05912172,0.00036164,10]
[402093715,1768516278553,-500.0,0.00036164,10]
[402093716,1768516278564,-548.13,0.00036164,10]
[402093717,1768516278574,-512.92601861,0.00036164,10]
[402093718,1768516278584,-585.92,0.00036164,10]
[402093719,1768516278594,-619.16579509,0.00036164,10]
[402093720,1768516278603,-562.36841649,0.00036164,10]
[402093721,1768516278613,-500.0,0.00036164,10]
[402093722,1768516278622,-1539.51,0.00036164,10]
[402093723,1768516278633,-1129.27,0.00036164,10]
[402093724,1768516278643,-351.37487339,0.00036164,10]
[402093725,1768516279181,-606.58512661,0.00036164,10]
[402093726,1768516279191,-695.88,0.00036164,10]
[402093727,1768516279201,-526.53,0.00036164,10]
[402093728,1768516279211,-500.0,0.00036164,10]
[402093729,1768516279220,-608.01,0.00036164,10]
[402093730,1768516279230,-500.0,0.00036164,10]
[402093731,1768516279239,-500.0,0.00036164,10]
[402093732,1768516279248,-500.88589192,0.00036164,10]
[402093733,1768516279258,-500.0,0.00036164,10]
[402093734,1768516279268,-500.0,0.00036164,10]
[402093735,1768516279278,-500.0,0.00036164,10]
[402093736,1768516279288,-500.0,0.00036164,10]
[402093737,1768516279297,-500.0,0.00036164,10]
[402093738,1768516279307,-500.0,0.00036164,10]
[402093739,1768516279317,-500.0,0.00036164,10]
[402093740,1768516279329,-500.0,0.00036164,10]
[402093742,1768516279339,-851.49,0.00036164,10]
[402093743,1768516279348,-500.0,0.00036164,10]
[402093744,1768516279358,-962.67,0.00036164,10]
[402093745,1768516279369,-500.0,0.00036164,10]
[402093747,1768516279379,-500.0,0.00036164,10]
[402093748,1768516279389,-500.0,0.00036164,10]
[402093749,1768516279400,-1377.27,0.00036164,10]
[402093750,1768516279410,-571.18,0.00036164,10]
[402093751,1768516279420,-500.0,0.00036164,10]
[402093752,1768516279430,-500.0,0.00036164,10]
[402093753,1768516279440,-782.36,0.00036164,10]
[402093754,1768516279450,-500.0,0.00036164,10]
[402093755,1768516279460,-848.65,0.00036164,10]
[402093756,1768516279469,-815.84,0.00036164,10]
[402093757,1768516279480,-500.0,0.00036164,10]
[402093758,1768516279490,-1119.22,0.00036164,10]
[402093759,1768516279500,-614.07,0.00036164,10]
[402093760,1768516279510,-643.56280073,0.00036164,10]
[402093761,1768516279519,-500.0,0.00036164,10]
[402093762,1768516279529,-500.0,0.00036164,10]
[402093763,1768516279539,-573.4,0.00036164,10]
[402093764,1768516279549,-1116.91,0.00036164,10]
[402093765,1768516279558,-500.0,0.00036164,10]
[402093766,1768516279568,-640.34,0.00036164,10]
[402093767,1768516279578,-500.0,0.00036164,10]
[402093768,1768516279588,-500.0,0.00036164,10]
[402093769,1768516279597,-891.58,0.00036164,10]
[402093770,1768516279608,-500.0,0.00036164,10]
[402093771,1768516279618,-602.4,0.00036164,10]
[402093772,1768516279628,-1038.06,0.00036164,10]
[402093773,1768516279639,-500.0,0.00036164,10]
[402093774,1768516279649,-563.86,0.00036164,10]
[402093775,1768516279659,-500.0,0.00036164,10]
[402093776,1768516279668,-500.0,0.00036164,10]
[402093777,1768516279678,-500.0,0.00036164,10]
[402093778,1768516279688,-798.98,0.00036164,10]
[402093779,1768516279698,-500.0,0.00036164,10]
[402093780,1768516279707,-500.0,0.00036164,10]
[402093781,1768516279717,-500.0,0.00036164,10]
[402093782,1768516279726,-500.0,0.00036164,10]
[402093783,1768516279736,-609.8833613,0.00036164,10]
[402093784,1768516279746,-430.75180298,0.00036164,10]
[402093785,1768516279756,-500.0,0.00036164,10]
[402093786,1768516279766,-677.77,0.00036164,10]
[402093787,1768516279775,-1000.0,0.00036164,10]
[402093788,1768516279785,-500.0,0.00036164,10]
[402093789,1768516279795,-500.0,0.00036164,10]
[402093790,1768516279805,-200.0,0.00036164,120]
[402093791,1768516279815,-750.59,0.00036164,10]
[402093792,1768516279825,-500.0,0.00036164,10]
[402093793,1768516279835,-500.0,0.00036164,10]
[402093794,1768516279844,-785.26,0.00036164,10]
[402093795,1768516279854,-500.0,0.00036164,10]
[402093796,1768516279864,-500.0,0.00036164,10]
[402093797,1768516279874,-500.0,0.00036164,10]
[402093798,1768516279884,-639.45,0.00036164,10]
[402093799,1768516279893,-500.0,0.00036164,10]
[402093800,1768516279903,-500.0,0.00036164,10]
[402093801,1768516279912,-500.0,0.00036164,10]
[402093802,1768516279922,-729.17,0.00036164,10]
[402093803,1768516280020,-842.64,0.00036164,10]
[402093804,1768516280030,-691.49,0.00036164,10]
[402093805,1768516280040,-500.0,0.00036164,10]
[402093806,1768516280050,-625.66,0.00036164,10]
[402093807,1768516280060,-503.11,0.00036164,10]
[402093808,1768516280071,-904.1,0.00036164,10]
[402093809,1768516280080,-808.80425377,0.00036164,10]
[402093810,1768516280098,-826.05574623,0.00036164,10]
[402093811,1768516280108,-218.60595418,0.00036164,10]
[402093812,1768516280119,-281.39404582,0.00036164,10]
[402093813,1768516280129,-516.11,0.00036164,10]
[402093814,1768516280139,-235.03605037,0.00036164,10]
[402093815,1768516280150,-449.02394963,0.00036164,10]
[402093816,1768516280160,-482.6822058,0.00036164,10]
[402093817,1768516280181,-1326.09676038,0.00016438,2]
[402093818,1768516280191,-17.3177942,0.00036164,10]
[402093819,1768516280201,-500.0,0.00036164,10]
[402093820,1768516280211,-500.0,0.00036164,10]
[402093821,1768516280220,-574.32013242,0.00036164,10]
[402093822,1768516280230,-1075.72,0.00036164,10]
[402093823,1768516280240,-500.0,0.00036164,10]
[402093824,1768516280250,-720.53,0.00036164,10]
[402093825,1768516280260,-500.0,0.00036164,10]
[402093826,1768516280269,-380.79918345,0.00036164,10]
[402093827,1768516280279,-1213.75,0.00036164,10]
[402093828,1768516280288,-384.74072521,0.00036164,10]
[402093829,1768516280300,-115.25927479,0.00036164,10]
[402093830,1768516280309,-500.0,0.00036164,10]
[402093831,1768516280320,-289.38735269,0.00036164,10]
[402093832,1768516280343,-1326.09676038,0.00016438,2]
[402093833,1768516280352,-1326.09676038,0.00016438,2]
[402093834,1768516280363,-210.61264731,0.00036164,10]
[402093835,1768516280372,-759.01,0.00036164,10]
[402093836,1768516280382,-1037.7318877,0.00036164,10]
[402093837,1768516280394,-443.8281123,0.00036164,10]
[402093838,1768516280404,-500.0,0.00036164,10]
[402093839,1768516280414,-769.69,0.00036164,10]
[402093840,1768516280423,-899.56,0.00036164,10]
[402093841,1768516280433,-500.0,0.00036164,10]
[402093842,1768516280442,-855.71,0.00036164,10]
[402093843,1768516280452,-500.0,0.00036164,10]
[402093844,1768516280461,-500.0,0.00036164,10]
[402093845,1768516280471,-500.0,0.00036164,10]
[402093846,1768516280481,-821.07,0.00036164,10]
[402093847,1768516280490,-500.0,0.00036164,10]
[402093848,1768516280500,-500.0,0.00036164,10]
[402093849,1768516280509,-500.0,0.00036164,10]
[402093850,1768516280519,-500.0,0.00036164,10]
[402093851,1768516280529,-500.0,0.00036164,10]
[402093852,1768516280538,-1861.71,0.00036164,10]
[402093853,1768516280548,-300.0,0.00036164,2]
[402093854,1768516280558,-1124.65,0.00036164,10]
[402093855,1768516280568,-500.0,0.00036164,10]
[402093856,1768516280577,-1073.04,0.00036164,10]
[402093857,1768516280586,-585.55,0.00036164,10]
[402093858,1768516280595,-405.98657546,0.00036164,10]
[402093859,1768516280606,-1779.7,0.00036164,10]
[402093860,1768516280615,-1339.16,0.00036164,10]
[402093861,1768516280624,-500.0,0.00036164,10]
[402093862,1768516280634,-500.0,0.00036164,10]
[402093863,1768516280644,-500.0,0.00036164,10]
[402093864,1768516280654,-500.0,0.00036164,10]
[402093865,1768516280664,-847.3,0.00036164,10]
[402093866,1768516280673,-500.0,0.00036164,10]
[402093867,1768516280683,-500.0,0.00036164,10]
[402093868,1768516280693,-500.0,0.00036164,10]
[402093869,1768516280703,-858.76,0.00036164,10]
[402093870,1768516280712,-709.53,0.00036164,10]
[402093871,1768516280722,-1030.73,0.00036164,10]
[402093872,1768516280733,-500.0,0.00036164,10]
[402093873,1768516280744,-989.09,0.00036164,10]
[402093874,1768516280753,-500.0,0.00036164,10]
[402093875,1768516280763,-375.68681891,0.00036164,10]
[402093876,1768516280772,-739.69,0.00036164,10]
[402093877,1768516280782,-622.54,0.00036164,10]
[402093878,1768516280791,-500.0,0.00036164,10]
[402093879,1768516280801,-662.72,0.00036164,10]
[402093880,1768516280810,-656.67,0.00036164,10]
[402093881,1768516280819,-527.04,0.00036164,10]
[402093882,1768516280829,-1012.62,0.00036164,10]
[402093883,1768516280840,-500.0,0.00036164,10]
[402093884,1768516280850,-558.7,0.00036164,10]
[402093885,1768516280860,-500.0,0.00036164,10]
[402093886,1768516280871,-500.0,0.00036164,10]
[402093887,1768516280882,-500.0,0.00036164,10]
[402093888,1768516280892,-556.79207448,0.00036164,10]
[402093889,1768516280901,-943.81,0.00036164,10]
[402093890,1768516280911,-1300.99,0.00036164,10]
[402093891,1768516280920,-635.17,0.00036164,10]
[402093892,1768516280929,-777.59,0.00036164,10]
[402093893,1768516280938,-151.0,0.00036164,31]
[402093894,1768516280948,-500.0,0.00036164,10]
[402093895,1768516280958,-500.0,0.00036164,10]
[402093896,1768516280967,-500.0,0.00036164,10]
[402093897,1768516280977,-520.11822499,0.00036164,10]
[402093898,1768516280986,-1388.9,0.00036164,10]
[402093899,1768516280996,-811.0,0.00036164,10]
[402093900,1768516281006,-204.65525376,0.00036164,10]
[402093901,1768516281016,-500.0,0.00036164,120]
[402093902,1768516281026,-500.0,0.00036164,10]
[402093903,1768516281036,-500.0,0.00036164,10]
[402093904,1768516281046,-768.85,0.00036164,10]
[402093905,1768516281056,-500.0,0.00036164,10]
[402093906,1768516281067,-151.0,0.00036164,31]
[402093907,1768516281077,-500.0,0.00036164,10]
[402093908,1768516281087,-564.7,0.00036164,10]
[402093909,1768516281096,-1081.0,0.00036164,10]
[402093910,1768516281105,-500.0,0.00036164,10]
[402093911,1768516281114,-743.41,0.00036164,10]
[402093912,1768516281124,-497.39899657,0.00036164,10]
[402093913,1768516281134,-500.0,0.00036164,10]
[402093914,1768516281143,-942.89,0.00036164,10]
[402093915,1768516281152,-552.29,0.00036164,10]
[402093916,1768516281161,-500.0,0.00036164,10]
[402093917,1768516281170,-1671.05,0.00036164,10]
[402093918,1768516281179,-500.0,0.00036164,10]
[402093919,1768516281188,-500.0,0.00036164,10]
[402093920,1768516281197,-1270.63,0.00036164,10]
[402093921,1768516281206,-500.0,0.00036164,10]
[402093922,1768516281215,-500.0,0.00036164,10]
[402093923,1768516281225,-500.0,0.00036164,10]
[402093924,1768516281234,-500.0,0.00036164,10]
[402093925,1768516281244,-500.0,0.00036164,10]
[402093926,1768516281254,-598.55,0.00036164,10]
[402093927,1768516281263,-500.0,0.00036164,10]
[402093928,1768516281272,-500.0,0.00036164,10]
[402093929,1768516281281,-1060.76,0.00036164,10]
[402093930,1768516281291,-525.49,0.00036164,10]
[402093931,1768516281300,-911.61,0.00036164,10]
[402093932,1768516281310,-500.0,0.00036164,10]
[402093933,1768516281320,-500.0,0.00036164,10]
[402093934,1768516281332,-1191.05,0.00036164,10]
[402093935,1768516281342,-500.0,0.00036164,10]
[402093936,1768516281352,-1237.13,0.00036164,2]
[402093937,1768516281362,-968.82,0.00036164,10]
[402093938,1768516281374,-1339.49,0.00036164,10]
[402093939,1768516281385,-500.0,0.00036164,10]
[402093940,1768516281395,-500.0,0.00036164,120]
[402093941,1768516281406,-500.0,0.00036164,10]
[402093942,1768516281415,-1017.29,0.00036164,10]
[402093943,1768516281425,-682.59,0.00036164,10]
[402093944,1768516281435,-500.0,0.00036164,10]
[402093945,1768516281444,-613.84,0.00036164,10]
[402093946,1768516281454,-713.75,0.00036164,10]
[402093947,1768516281464,-601.57,0.00036164,10]
[402093948,1768516281473,-1421.75357069,0.00036164,10]
[402093949,1768516281491,-39.67642931,0.00036164,10]
[402093950,1768516281501,-414.87290588,0.00036164,10]
[402093951,1768516281612,-1326.09676038,0.00016438,2]
[402093952,1768516281622,-1326.09676038,0.00016438,2]
[402093953,1768516281633,-151.0,0.00017384,2]
[402093954,1768516281643,-85.12709412,0.00036164,10]
[402093955,1768516281653,-500.0,0.00036164,10]
[402093956,1768516281663,-500.0,0.00036164,10]
[402093957,1768516281673,-187.54329505,0.00036164,10]
[402093958,1768516281683,-435.10103311,0.00036164,10]
[402093959,1768516281695,-1090.24,0.00036164,10]
[402093960,1768516281706,-1048.77,0.00036164,10]
[402093961,1768516281716,-500.0,0.00036164,10]
[402093962,1768516281728,-500.0,0.00036164,10]
[402093963,1768516281739,-435.48,0.00036164,10]
[402093964,1768516281749,-500.0,0.00036164,10]
[402093965,1768516281759,-500.0,0.00036164,10]
[402093966,1768516281769,-508.81,0.00036164,10]
[402093967,1768516281778,-500.0,0.00036164,10]
[402093968,1768516281791,-541.26,0.00036164,10]
[402093969,1768516281802,-664.74,0.00036164,10]
[402093970,1768516281812,-151.0,0.00036164,31]
[402093971,1768516281822,-500.0,0.00036164,10]
[402093972,1768516281832,-1996.77,0.00036164,10]
[402093973,1768516281843,-790.73,0.00036164,10]
[402093974,1768516281853,-1206.21,0.00036164,10]
[402093975,1768516281865,-500.0,0.00036164,10]
[402093976,1768516281876,-500.0,0.00036164,10]
[402093977,1768516281886,-500.0,0.00036164,10]
[402093978,1768516281896,-731.91,0.00036164,10]
[402093979,1768516281906,-983.17,0.00036164,10]
[402093980,1768516281918,-702.58,0.00036164,10]
[402093981,1768516281928,-500.0,0.00036164,10]
[402093982,1768516281939,-633.71,0.00036164,10]
[402093983,1768516281949,-500.0,0.00036164,10]
[402093984,1768516281959,-558.98,0.00036164,10]
[402093985,1768516281968,-844.94,0.00036164,10]
[402093986,1768516281978,-500.0,0.00036164,10]
[402093987,1768516281988,-697.57,0.00036164,10]
[402093988,1768516281998,-500.0,0.00036164,10]
[402093989,1768516282009,-501.74,0.00036164,10]
[402093990,1768516282018,-125.71414844,0.00036164,10]
[402093991,1768516282047,-1326.09676038,0.00016438,2]
[402093992,1768516282057,-647.20585156,0.00036164,10]
[402093993,1768516282067,-1549.1,0.00036164,10]
[402093994,1768516282078,-500.0,0.00036164,10]
[402093995,1768516282088,-924.93,0.00036164,10]
[402093996,1768516282099,-500.0,0.00036164,10]
[402093997,1768516282110,-500.0,0.00036164,10]
[402093998,1768516282120,-500.0,0.00036164,10]
[402093999,1768516282130,-558.47,0.00036164,10]
[402094000,1768516282140,-802.1,0.00036164,10]
[402094001,1768516282152,-623.57826106,0.00036164,10]
[402094002,1768516282163,-500.0,0.00036164,10]
[402094003,1768516282174,-1467.42,0.00036164,10]
[402094004,1768516282184,-500.0,0.00036164,10]
[402094005,1768516282195,-1069.79,0.00036164,10]
[402094006,1768516282206,-500.0,0.00036164,10]
[402094007,1768516282216,-500.0,0.00036164,10]
[402094008,1768516282226,-1425.46,0.00036164,10]
[402094009,1768516282236,-1261.36,0.00036164,10]
[402094010,1768516282246,-715.38,0.00036164,10]
[402094011,1768516282256,-500.0,0.00036164,10]
[402094012,1768516282266,-500.0,0.00036164,10]
[402094013,1768516282276,-574.36,0.00036164,10]
[402094014,1768516282286,-500.0,0.00036164,10]
[402094015,1768516282296,-500.0,0.00036164,10]
[402094016,1768516282306,-1750.03,0.00036164,10]
[402094017,1768516282317,-151.0,0.00036164,31]
[402094018,1768516282330,-500.0,0.00036164,10]
[402094019,1768516282342,-1952.78,0.00036164,10]
[402094020,1768516282352,-1011.61,0.00036164,10]
[402094021,1768516282363,-500.0,0.00036164,10]
[402094022,1768516282374,-89.2130919,0.00036164,10]
[402094035,1768516295764,-263.15142284,0.00015593,2]
[402094036,1768516299070,-248.03857716,0.00015593,2]
[402094037,1768516301096,-44.95931484,0.00015593,2]
[402094038,1768516301126,-183.53832297,0.00015593,2]
[402094040,1768516302704,999.34000019,0.0003013,120]
[402094041,1768516303392,-155.95336349,0.00015593,2]
[402094042,1768516305480,-178.40174493,0.00015593,2]
[402094043,1768516309284,-45.27022193,0.00015593,2]
[402094044,1768516309311,-300.0,0.00015593,2]
[402094045,1768516309339,-44.4203383,0.00015593,2]
[402094047,1768516311199,-150.5796617,0.00015593,2]
[402094048,1768516311222,-18.17661013,0.00015593,2]
[402094049,1768516312914,-205.41968543,0.00015593,2]
[402094050,1768516315501,-255.74220904,0.00015593,2]
[402094051,1768516317000,-120.6614954,0.00015593,2]
[402094052,1768516317023,-80.19971196,0.00015594,2]
[402094055,1768516318506,-345.41478923,0.00015594,2]
[402094078,1768516340792,-296.07042154,0.00015594,2]
[402094080,1768516343343,-163.59538386,0.00015594,2]
[402094081,1768516344471,-114.71969341,0.00015594,2]
[402094082,1768516344496,-209.93273975,0.00015594,2]
[402094083,1768516345919,-555.61565147,0.00015594,2]
[402094084,1768516348478,-156.81209436,0.00015594,2]
[402094086,1768516350545,-333.53554376,0.00015594,2]
[402094087,1768516352561,-166.64583723,0.00015594,2]
[402094089,1768516357741,-285.56508999,0.00015594,2]
[402094090,1768516360370,-303.20627472,0.00015594,2]
[402094091,1768516364822,-162.55196502,0.00015594,2]
[402094092,1768516365866,-326.1348037,0.00015594,2]
[402094093,1768516365890,-173.8651963,0.00015596,2]
[402094094,1768516367356,-426.1348037,0.00015596,2]
[402094095,1768516367380,-73.8651963,0.00015598,2]
[402094097,1768516371264,-121.1348037,0.00015598,2]
[402094098,1768516371288,-300.0,0.00015602,2]
[402094099,1768516371313,-21.07094298,0.00015602,2]
[402094101,1768516373977,-235.05810808,0.00015602,2]
[402094102,1768516377129,-55.71488953,0.00015602,2]
[402094103,1768516377153,-243.46876265,0.00015604,2]
[402094104,1768516378472,-170.52600367,0.00015604,2]
[402094105,1768516378589,-195.0,0.00015628,2]
[402094106,1768516378615,-105.0,0.00015635,2]
[402094107,1768516379723,198.93309843,0.00015598,2]
[402094108,1768516382599,500.0,0.00015593,2]
[402094109,1768516382647,500.0,0.00015593,2]
[402094110,1768516382705,500.0,0.00015593,2]
[402094111,1768516382768,500.0,0.00015593,2]
[402094112,1768516382823,534.23643994,0.00015593,2]
[402094139,1768516515267,500.0,0.00015536,2]
[402094140,1768516591360,-250.0,0.0001567,2]
[402094141,1768516591394,-198.93309843,0.00015704,2]
[402094142,1768516591432,-327.94862154,0.00015766,2]
[402094143,1768516591466,-928.56,0.00015793,2]
[402094144,1768516591502,-300.0,0.00015892,2]
[402094145,1768516591539,-1200.0,0.00015893,2]
[402094146,1768516591577,-300.0,0.00015893,2]
[402094147,1768516591937,-198.93309843,0.00015894,2]
[402094148,1768516591971,-500.0,0.00015894,2]
[402094149,1768516592004,-500.0,0.00015894,2]
[402094150,1768516592036,-91.2603632,0.00015894,2]
[402094151,1768516592373,-408.7396368,0.00015894,2]
[402094152,1768516592406,-500.0,0.00015894,2]
[402094153,1768516592445,-500.0,0.00015894,2]
[402094154,1768516592477,-500.0,0.00015894,2]
[402094155,1768516592512,-500.0,0.00015894,2]
[402094156,1768516592543,-500.0,0.00015894,2]
[402094157,1768516592574,-500.0,0.00015894,2]
[402094158,1768516592605,-500.0,0.00015894,2]
[402094159,1768516592637,-500.0,0.00015894,2]
[402094160,1768516592670,-500.0,0.00015894,2]
[402094161,1768516594213,-614.35342236,0.00015894,2]